bitfinex/quotes_SOLUSD_20250414
["timestamp","ask_amount","ask_price","bid_price","bid_amount"]
[1744673799026,39.42646448,130.04,129.98,106.11176448]
[1744673799213,7.678,130.03,129.98,10.6]
[1744673799415,20.18976448,130.03,129.98,23.11176448]
[1744673800110,12.51176448,130.02,129.98,10.6]
[1744673800807,12.51176448,129.99,129.97,0.063]
[1744673801417,12.51176448,130.0,129.97,0.063]
[1744673804031,20.20436448,130.0,129.97,0.063]
[1744673806725,12.51176448,130.01,129.97,0.063]
[1744673807834,7.6923,130.01,129.97,12.57476448]
[1744673809436,12.51176448,130.01,129.97,12.57476448]
[1744673809732,12.51176448,130.01,129.97,0.063]
[1744673810428,7.6911,130.02,129.97,0.063]
[1744673810630,12.51176448,130.01,129.97,0.063]
[1744673812235,20.20376448,130.01,129.97,0.063]
[1744673813122,12.51176448,129.98,129.97,0.063]
[1744673814740,20.20516448,129.98,129.97,0.063]
[1744673818327,7.6934,129.98,129.97,0.063]
[1744673821149,20.20516448,129.98,129.97,0.063]
[1744673821633,23.15598611,130.01,129.97,0.063]
[1744673821634,26.0,130.0,129.97,0.063]
[1744673821942,12.51176448,130.01,129.97,0.063]
[1744673822528,12.51176448,129.99,129.97,0.063]
[1744673822722,12.51176448,129.98,129.97,0.063]
[1744673823247,41.69109517,130.0,129.97,0.063]
[1744673823546,15.69109517,130.0,129.97,0.063]
[1744673828147,7.99849517,130.01,129.97,0.063]
[1744673828327,7.99849517,130.0,129.97,0.063]
[1744673828653,7.99849517,129.99,129.97,0.063]
[1744673828852,7.99849517,129.98,129.97,0.063]
[1744673829353,7.6911,130.02,129.97,8.06149517]
[1744673829547,38.01621043,130.05,130.0,7.99849517]
[1744673829548,15.68819517,130.05,130.0,7.99849517]
[1744673830060,0.063,130.06,130.02,7.99849517]
[1744673830232,0.063,130.06,130.0,1.5508]
[1744673830433,8.06149517,130.06,130.01,7.99849517]
[1744673831252,7.99849517,130.05,130.0,17.24129517]
[1744673831728,7.99849517,130.05,130.0,15.69049517]
[1744673832254,7.99849517,130.04,129.99,7.99849517]
[1744673833160,7.6899,130.05,129.97,12.256]
[1744673833161,12.48898065,130.02,129.97,12.256]
[1744673833337,12.48898065,129.99,129.97,0.063]
[1744673833657,12.48898065,129.98,129.97,0.063]
[1744673834561,12.48898065,130.01,129.97,0.063]
[1744673835732,38.48898065,130.02,129.98,12.48898065]
[1744673835934,12.48898065,130.05,130.0,12.48898065]
[1744673836142,20.24088065,130.06,130.01,12.48898065]
[1744673837452,12.48898065,130.04,129.99,14.05828065]
[1744673837645,7.7519,130.06,129.99,21.75098065]
[1744673837850,12.48898065,130.05,130.01,12.48898065]
[1744673838359,12.48898065,130.05,130.0,12.48898065]
[1744673839462,12.48898065,130.05,130.0,20.18088065]
[1744673839463,20.17858065,130.05,130.0,20.18088065]
[1744673839860,12.48898065,130.05,130.0,20.18088065]
[1744673840167,7.7519,130.06,130.01,12.48898065]
[1744673840360,46.24088065,130.06,130.01,12.48898065]
[1744673840734,12.48898065,130.04,130.0,7.6919]
[1744673841343,12.48898065,130.05,130.0,20.18088065]
[1744673842061,0.063,130.06,130.02,12.48898065]
[1744673842365,0.063,130.06,130.04,12.48898065]
[1744673842666,0.063,130.06,130.05,12.48898065]
[1744673844061,0.063,130.06,130.05,20.17828065]
[1744673844363,12.48898065,130.09,130.05,20.17828065]
[1744673845058,0.14216157,130.12,130.05,7.6893]
[1744673845243,0.14216157,130.12,130.04,21.78908065]
[1744673845244,12.48898065,130.09,130.04,21.78908065]
[1744673846240,20.17618065,130.09,130.04,21.78908065]
[1744673850364,20.17618065,130.09,130.03,14.151]
[1744673850365,12.48898065,130.07,130.03,14.151]
[1744673850559,12.48898065,130.06,130.03,14.151]
[1744673850740,7.6872,130.09,130.03,14.151]
[1744673850741,12.48898065,130.07,130.03,14.151]
[1744673851064,7.82766157,130.12,130.05,12.48898065]
[1744673851365,12.48898065,130.1,130.05,12.48898065]
[1744673852464,12.48898065,130.1,130.06,7.6887]
[1744673854839,7.6846,130.13,130.06,20.17768065]
[1744673855043,12.48898065,130.13,130.08,12.48898065]
[1744673855537,12.48898065,130.11,130.06,115.53808065]
[1744673855741,12.48898065,130.1,130.06,103.0491]
[1744673855960,12.48898065,130.1,130.06,20.0491]
[1744673856156,7.7143,130.14,130.08,12.48898065]
[1744673856361,12.48898065,130.12,130.08,12.48898065]
[1744673856558,12.48898065,130.13,130.09,7.6869]
[1744673857548,12.48898065,130.11,130.07,12.48898065]
[1744673857755,7.7143,130.14,130.08,12.48898065]
[1744673857954,20.20328065,130.14,130.09,12.48898065]
[1744673858154,7.7143,130.14,130.09,12.48898065]
[1744673858354,12.51898065,130.14,130.09,12.48898065]
[1744673858557,12.51898065,130.14,130.1,7.6863]
[1744673859443,20.20308065,130.14,130.1,7.6863]
[1744673859642,20.20308065,130.14,130.08,6.0949]
[1744673859968,20.20308065,130.14,130.09,20.17578065]
[1744673860670,12.48898065,130.13,130.08,26.27128065]
[1744673860875,7.7141,130.14,130.08,6.0949]
[1744673860876,12.48898065,130.11,130.08,6.0949]
[1744673861049,12.48898065,130.11,130.06,115.53778065]
[1744673861249,12.48898065,130.1,130.06,20.0488]
[1744673861449,12.48898065,130.11,130.06,32.53778065]
[1744673862142,12.48898065,130.13,130.08,12.48898065]
[1744673862869,20.17378065,130.13,130.08,7.687]
[1744673863072,12.48898065,130.12,130.08,7.687]
[1744673863272,12.48898065,130.13,130.08,20.17598065]
[1744673863771,12.48898065,130.13,130.09,12.48898065]
[1744673864466,12.48898065,130.13,130.1,7.6863]
[1744673867758,12.48898065,130.13,130.08,20.17648065]
[1744673871185,7.98086354,130.13,130.08,15.66836354]
[1744673873562,15.66556354,130.13,130.08,15.66836354]
[1744673876182,7.98086354,130.13,130.08,15.66836354]
[1744673878365,7.98086354,130.13,130.09,7.98086354]
[1744673881293,7.98086354,130.13,130.09,15.66726354]
[1744673881491,0.03,130.14,130.09,15.66726354]
[1744673881671,0.03,130.14,130.1,14.35486354]
[1744673882988,0.03,130.14,130.11,7.6858]
[1744673883189,0.03,130.14,130.1,22.04086354]
[1744673883395,8.01086354,130.14,130.1,14.06]
[1744673884578,7.98086354,130.13,130.1,14.06]
[1744673885494,8.01086354,130.14,130.1,14.06]
[1744673886973,0.03,130.14,130.11,9.50036354]
[1744673888396,0.03,130.14,130.12,7.6852]
[1744673888787,0.03,130.14,130.11,7.6855]
[1744673889997,7.98086354,130.13,130.1,83.0]
[1744673890222,7.98086354,130.13,130.09,1.5195]
[1744673890375,7.98086354,130.12,130.09,7.6867]
[1744673891680,15.66576354,130.13,130.09,7.6867]
[1744673891996,7.98086354,130.11,130.07,13.9802]
[1744673892376,7.98086354,130.1,130.07,13.9802]
[1744673894404,7.98086354,130.1,130.06,9.50036354]
[1744673894405,15.66726354,130.1,130.06,17.18876354]
[1744673894705,15.66726354,130.1,130.06,9.2079]
[1744673895111,15.66726354,130.1,130.06,7.6884]
[1744673897803,7.98086354,130.08,130.04,16.8033]
[1744673898012,7.98086354,130.05,130.04,0.063]
[1744673899305,8.12302511,130.05,130.04,0.063]
[1744673899488,28.76675868,130.05,130.04,0.063]
[1744673900004,36.45605868,130.05,130.04,0.063]
[1744673901378,47.07605868,130.05,130.04,0.063]
[1744673901584,26.14216157,130.03,130.02,0.063]
[1744673901881,34.12302511,130.03,130.02,0.063]
[1744673902905,85.12261284,130.03,130.02,0.063]
[1744673903098,0.14216157,130.01,130.0,0.063]
[1744673903302,8.12302511,130.01,130.0,0.063]
[1744673903611,15.81472511,130.01,130.0,0.063]
[1744673905409,34.89085868,130.01,130.0,0.063]
[1744673909592,15.81472511,130.01,130.0,0.063]
[1744673911104,15.67256354,130.01,130.0,0.063]
[1744673912910,34.60653554,130.01,130.0,0.063]
[1744673913090,34.89085868,130.01,130.0,0.063]
[1744673916119,15.81472511,130.01,130.0,0.063]
[1744673924021,7.6917,130.01,130.0,0.063]
[1744673924320,7.98086354,130.01,130.0,0.063]
[1744673924618,8.12302511,130.01,130.0,0.063]
[1744673924794,18.79181043,130.0,129.99,0.063]
[1744673924999,27.05699711,130.0,129.99,0.063]
[1744673926123,34.74929711,130.0,129.99,0.063]
[1744673926318,15.67316354,130.0,129.99,0.063]
[1744673931226,15.81532511,130.0,129.99,0.063]
[1744673931419,16.24180982,130.0,129.99,0.063]
[1744673931614,15.67316354,130.0,129.99,0.063]
[1744673935276,48.75610994,130.04,129.99,0.063]
[1744673935277,18.79181043,130.06,129.99,8.04386354]
[1744673935410,7.98086354,130.06,130.01,7.98086354]
[1744673935605,0.03,130.08,130.04,7.98086354]
[1744673935943,0.03,130.08,130.05,7.98086354]
[1744673936229,8.01086354,130.08,130.04,13.8461]
[1744673936734,0.03,130.06,130.04,13.8461]
[1744673937026,0.03,130.06,130.05,7.98086354]
[1744673937205,0.03,130.06,130.05,12.47536422]
[1744673938310,0.03,130.06,130.05,20.16466422]
[1744673947227,0.03,130.06,130.05,7.6893]
[1744673947539,0.03,130.06,130.05,20.16466422]
[1744673949143,0.03,130.06,130.05,39.38295936]
[1744673949349,0.0001,130.08,130.07,0.28432314]
[1744673949538,0.0001,130.08,130.07,125.37365936]
[1744673949735,0.0001,130.08,130.07,144.08302358]
[1744673950049,0.03,130.13,130.11,44.79181043]
[1744673950224,0.03,130.13,130.12,43.88365936]
[1744673950435,0.03,130.13,130.12,37.89939514]
[1744673950648,0.03,130.13,130.12,58.05995936]
[1744673951029,0.03,130.13,130.12,38.84166422]
[1744673951223,0.03,130.13,130.12,57.91779779]
[1744673953248,0.03,130.13,130.12,58.05995936]
[1744673953842,0.03,130.14,130.13,44.02686201]
[1744673954154,0.0001,130.14,130.13,44.16902358]
[1744673954329,0.0001,130.15,130.14,26.76013357]
[1744673954537,0.0001,130.15,130.14,39.23549779]
[1744673955454,0.0001,130.15,130.14,122.23549779]
[1744673955857,0.0001,130.15,130.14,90.684]
[1744673956038,0.0001,130.15,130.13,7.6843]
[1744673956632,0.0001,130.15,130.14,31.55149779]
[1744673957032,0.0001,130.15,130.14,12.47536422]
[1744673958863,0.0001,130.15,130.14,20.15936422]
[1744673959556,0.0001,130.15,130.13,7.6843]
[1744673960858,0.0001,130.15,130.12,107.856]
[1744673961155,12.47536422,130.14,130.12,10.68]
[1744673961534,12.47536422,130.14,130.09,26.79746422]
[1744673962047,12.47536422,130.12,130.08,10.68]
[1744673962250,12.47536422,130.14,130.09,12.47536422]
[1744673962637,12.47536422,130.13,130.08,30.84256422]
[1744673963663,12.47536422,130.13,130.09,12.47536422]
[1744673964162,12.47536422,130.13,130.08,30.84256422]
[1744673964562,12.47536422,130.13,130.09,12.47536422]
[1744673964763,12.47536422,130.14,130.09,12.47536422]
[1744673964958,12.47536422,130.13,130.09,12.47536422]
[1744673965165,12.47536422,130.12,130.08,10.68]
[1744673965368,12.47536422,130.13,130.09,12.47536422]
[1744673965668,12.47536422,130.11,130.08,10.68]
[1744673965871,39.36936422,130.14,130.08,10.68]
[1744673965872,12.47536422,130.1,130.08,10.68]
[1744673966048,12.47536422,130.11,130.08,10.68]
[1744673966365,12.47536422,130.12,130.08,18.3675]
[1744673966773,12.47536422,130.11,130.08,10.68]
[1744673966943,12.47536422,130.1,130.08,10.68]
[1744673968362,20.16136422,130.11,130.08,10.68]
[1744673969747,12.47536422,130.09,130.05,7.6891]
[1744673969952,12.47536422,130.1,130.05,20.16446422]
[1744673971273,12.47536422,130.09,130.05,20.16446422]
[1744673971471,20.16236422,130.09,130.05,20.16446422]
[1744673971971,12.47536422,130.09,130.05,20.16446422]
[1744673972154,20.16196422,130.1,130.05,20.16446422]
[1744673972355,12.47536422,130.09,130.05,20.16446422]
[1744673972861,12.47536422,130.07,130.04,10.68]
[1744673973175,0.14216157,130.09,130.04,10.68]
[1744673973376,12.47536422,130.06,130.04,10.68]
[1744673973584,12.47536422,130.06,130.02,20.22936422]
[1744673974069,20.16386422,130.07,130.02,20.22936422]
[1744673974265,9.189,130.07,130.02,7.754]
[1744673974466,21.66436422,130.07,130.02,20.22936422]
[1744673974869,21.66436422,130.07,130.02,7.754]
[1744673975276,12.47536422,130.06,130.02,0.063]
[1744673975568,13.97586422,130.07,130.02,12.53836422]
[1744673975776,1.5005,130.07,130.03,12.47536422]
[1744673977584,12.47536422,130.09,130.04,12.47536422]
[1744673977765,1.6056,130.11,130.06,12.47536422]
[1744673978075,14.08096422,130.11,130.06,12.47536422]
[1744673978375,112.35149779,130.14,130.06,12.47536422]
[1744673978376,1.6056,130.14,130.06,83.14216157]
[1744673978675,0.0001,130.15,130.12,12.47536422]
[1744673978976,0.0001,130.15,130.11,12.47536422]
[1744673979158,20.15916422,130.15,130.1,23.29536422]
[1744673979472,0.0001,130.15,130.12,12.47536422]
[1744673979681,0.0001,130.15,130.13,20.15996422]
[1744673982785,0.0001,130.15,130.12,12.47536422]
[1744673983084,12.47546422,130.15,130.1,112.87696422]
[1744673983473,0.0001,130.15,130.11,12.47536422]
[1744673985379,0.0001,130.15,130.12,7.6852]
[1744673986489,12.47546422,130.15,130.11,7.6856]
[1744673987274,0.0001,130.15,130.11,20.16096422]
[1744673987478,0.0001,130.15,130.12,12.47536422]
[1744673989186,0.0001,130.15,130.11,20.16096422]
[1744673994378,12.47536422,130.12,130.1,10.82]
[1744673994575,12.47536422,130.13,130.1,10.82]
[1744673994772,12.47536422,130.12,130.1,10.82]
[1744673994968,12.47536422,130.11,130.07,7.6879]
[1744673995581,12.47536422,130.11,130.06,30.98376422]
[1744673995885,12.47536422,130.09,130.06,10.82]
[1744673996091,12.47536422,130.08,130.06,10.82]
[1744673996280,20.16236422,130.09,130.06,10.82]
[1744673997088,12.47536422,130.08,130.06,10.82]
[1744673997294,12.47536422,130.07,130.05,0.063]
[1744673997584,12.47536422,130.06,130.05,0.063]
[1744673998088,12.47536422,130.07,130.05,0.063]
[1744673998292,12.47536422,130.08,130.05,0.063]
[1744673998493,12.47536422,130.09,130.05,12.53836422]
[1744673998667,7.6866,130.1,130.05,0.063]
[1744673998868,12.47536422,130.08,130.05,0.063]
[1744674000310,12.47536422,130.07,130.05,0.063]
[1744674001393,12.47536422,130.08,130.05,0.063]
[1744674002096,20.16246422,130.09,130.05,0.063]
[1744674002398,7.6871,130.09,130.05,0.063]
[1744674002596,12.47536422,130.08,130.05,0.063]
[1744674003782,20.16296422,130.08,130.05,0.063]
[1744674003982,12.47536422,130.08,130.05,0.063]
[1744674006679,20.16256422,130.09,130.05,0.063]
[1744674012397,7.82736157,130.12,130.05,0.063]
[1744674012603,12.47536422,130.09,130.05,0.063]
[1744674012782,12.47536422,130.09,130.05,12.53836422]
[1744674013401,12.47536422,130.09,130.05,20.22726422]
[1744674014302,20.16236422,130.09,130.05,20.22726422]
[1744674014528,12.47536422,130.08,130.05,0.063]
[1744674014689,20.16236422,130.09,130.05,0.063]
[1744674015082,20.16236422,130.09,130.05,7.7522]
[1744674015381,15.6731569,130.09,130.05,7.7522]
[1744674015907,1.6602,130.13,130.07,7.9861569]
[1744674016087,7.9861569,130.14,130.09,7.9861569]
[1744674016290,15.6699569,130.15,130.1,7.9861569]
[1744674017001,7.9861569,130.13,130.09,7.9861569]
[1744674017411,15.6699569,130.15,130.1,7.9861569]
[1744674018486,15.6699569,130.15,130.1,15.6720569]
[1744674019008,7.9861569,130.14,130.1,7.6859]
[1744674019309,12.46791031,130.14,130.1,7.6859]
[1744674019510,12.46791031,130.14,130.09,20.15461031]
[1744674020411,20.15171031,130.15,130.11,7.6858]
[1744674023709,12.46801031,130.15,130.11,7.6858]
[1744674023888,0.0001,130.15,130.12,12.46791031]
[1744674024904,0.0001,130.15,130.11,20.15371031]
[1744674025209,12.46791031,130.14,130.1,7.6861]
[1744674025514,12.46791031,130.14,130.1,20.15401031]
[1744674025889,12.46801031,130.15,130.1,20.15401031]
[1744674026499,20.15151031,130.15,130.1,20.15401031]
[1744674029017,20.15211031,130.14,130.08,7.6875]
[1744674029318,12.46791031,130.13,130.08,20.15541031]
[1744674030325,20.15211031,130.14,130.09,20.15431031]
[1744674033114,12.46791031,130.13,130.07,10.84]
[1744674033425,12.46791031,130.12,130.07,23.30791031]
[1744674033603,12.46791031,130.12,130.07,30.99591031]
[1744674033920,12.46791031,130.14,130.09,12.46791031]
[1744674034516,20.15191031,130.14,130.09,12.46791031]
[1744674034833,12.46791031,130.13,130.08,12.46791031]
[1744674035201,12.46791031,130.12,130.07,23.30791031]
[1744674036317,20.15331031,130.12,130.07,30.99571031]
[1744674036931,12.46791031,130.12,130.07,30.99571031]
[1744674037227,12.46801031,130.15,130.1,12.46791031]
[1744674037408,12.46791031,130.14,130.1,12.46791031]
[1744674038109,12.46791031,130.14,130.1,20.15381031]
[1744674040613,12.46801031,130.15,130.1,20.15381031]
[1744674041326,15.66200752,130.15,130.1,15.66440752]
[1744674042020,7.97850752,130.12,130.08,7.6872]
[1744674042199,15.66370752,130.12,130.08,7.6872]
[1744674043628,7.97850752,130.13,130.09,7.97850752]
[1744674043826,15.66230752,130.15,130.1,7.97850752]
[1744674044219,7.97850752,130.14,130.1,15.66440752]
[1744674046933,15.66250752,130.14,130.09,26.36520752]
[1744674048129,7.97850752,130.13,130.09,10.7]
[1744674048331,7.97850752,130.12,130.09,10.7]
[1744674049635,7.97850752,130.13,130.09,10.7]
[1744674050134,15.66370752,130.13,130.09,10.7]
[1744674050435,15.66370752,130.13,130.09,18.3869]
[1744674051636,7.97850752,130.12,130.09,10.7]
[1744674053236,7.97850752,130.1,130.06,7.9471]
[1744674053420,7.97850752,130.08,130.05,10.763]
[1744674053815,7.97850752,130.06,130.05,10.763]
[1744674054126,7.97850752,130.07,130.05,10.763]
[1744674054320,7.97850752,130.07,130.05,0.063]
[1744674054527,7.97850752,130.06,130.05,0.063]
[1744674055626,15.66720752,130.06,130.05,0.063]
[1744674059336,15.80936909,130.06,130.05,0.063]
[1744674059918,15.66720752,130.06,130.05,0.063]
[1744674060723,15.80936909,130.06,130.05,0.063]
[1744674063135,15.66720752,130.06,130.05,0.063]
[1744674063939,15.80936909,130.06,130.05,0.063]
[1744674064843,19.07613357,130.05,130.04,0.063]
[1744674065025,27.05464109,130.05,130.04,0.063]
[1744674065526,34.74394109,130.05,130.04,0.063]
[1744674066123,0.14216157,130.04,130.03,0.0001]
[1744674066323,8.12066909,130.04,130.03,0.0001]
[1744674067730,47.72459917,130.04,130.03,0.0001]
[1744674068338,15.81056909,130.04,130.03,0.0001]
[1744674068526,44.933972,130.01,129.99,0.063]
[1744674068728,26.0,129.97,129.96,0.063]
[1744674068927,0.14216157,129.96,129.94,0.063]
[1744674069133,8.12066909,129.95,129.94,0.063]
[1744674069849,15.81586909,129.95,129.94,0.063]
[1744674070047,0.14216157,129.93,129.92,0.063]
[1744674070373,8.12066909,129.93,129.92,0.063]
[1744674071042,0.14216157,129.91,129.89,0.063]
[1744674071347,51.18055423,129.91,129.89,0.063]
[1744674072246,26.0,129.87,129.83,10.6]
[1744674072559,26.0,129.87,129.79,6.287]
[1744674072560,25.03839266,129.84,129.79,6.287]
[1744674072863,12.51919633,129.83,129.79,5.287]
[1744674073245,12.51919633,129.82,129.79,5.287]
[1744674074234,20.22259633,129.82,129.79,5.287]
[1744674075965,20.22039633,129.85,129.8,12.51919633]
[1744674076364,12.6613579,129.82,129.68,1.0]
[1744674076540,12.6613579,129.82,129.75,7.9007]
[1744674076541,12.51919633,129.79,129.75,7.9007]
[1744674076742,12.51919633,129.78,129.75,7.9007]
[1744674077340,12.51919633,129.77,129.75,6.3548]
[1744674077676,20.22479633,129.78,129.75,6.3548]
[1744674077887,12.51919633,129.77,129.75,6.3548]
[1744674078571,12.51919633,129.77,129.72,38.85529633]
[1744674079277,12.51919633,129.76,129.72,17.0815]
[1744674079774,12.51919633,129.76,129.72,24.7903]
[1744674080971,7.7062,129.77,129.72,24.7903]
[1744674080972,12.51919633,129.74,129.72,10.62]
[1744674081356,12.51919633,129.75,129.72,10.62]
[1744674081769,12.51919633,129.74,129.7,20.22899633]
[1744674081965,0.14216157,129.77,129.69,0.03]
[1744674081966,12.51919633,129.71,129.69,0.03]
[1744674082570,12.51919633,129.7,129.69,0.03]
[1744674082784,12.51919633,129.73,129.69,0.03]
[1744674082959,20.22699633,129.74,129.69,7.7405]
[1744674083278,20.22699633,129.74,129.69,0.03]
[1744674083279,12.51919633,129.73,129.69,0.03]
[1744674083480,12.51919633,129.72,129.69,0.03]
[1744674083677,12.51919633,129.7,129.69,0.03]
[1744674084865,20.22929633,129.7,129.69,0.03]
[1744674085976,12.51919633,129.7,129.69,0.03]
[1744674086170,26.0,129.72,129.69,0.03]
[1744674086565,12.51919633,129.71,129.69,0.03]
[1744674086983,20.22879633,129.71,129.69,0.03]
[1744674087568,12.6613579,129.7,129.69,0.03]
[1744674087769,18.933972,129.69,129.64,1.1876597]
[1744674087972,12.51919633,129.65,129.64,1.1876597]
[1744674088171,31.73749147,129.65,129.64,1.1876597]
[1744674088677,12.6613579,129.65,129.64,1.1876597]
[1744674088878,12.51919633,129.65,129.64,1.1876597]
[1744674089077,20.23219633,129.65,129.64,1.1876597]
[1744674089380,39.45049147,129.65,129.64,1.1876597]
[1744674089781,39.45049147,129.65,129.64,5.97e-05]
[1744674090372,0.14216157,129.63,129.62,0.03]
[1744674090580,31.73749147,129.63,129.62,0.03]
[1744674091186,0.14216157,129.62,129.53,26.57039633]
[1744674091379,12.51919633,129.58,129.54,12.51919633]
[1744674091580,12.51919633,129.6,129.55,12.51919633]
[1744674091781,0.14216157,129.61,129.53,12.5512]
[1744674092075,12.51919633,129.58,129.54,12.51919633]
[1744674092273,12.51919633,129.56,129.53,6.3311]
[1744674092672,12.51919633,129.55,129.52,10.64]
[1744674092874,12.51919633,129.55,129.51,7.7511]
[1744674093085,12.51919633,129.54,129.51,0.03]
[1744674093387,20.13529094,129.54,129.51,0.03]
[1744674093867,20.13529094,129.53,129.51,0.03]
[1744674094202,20.13529094,129.52,129.51,0.03]
[1744674095193,27.85609094,129.52,129.51,0.03]
[1744674095410,27.99825251,129.52,129.51,0.03]
[1744674095600,18.933972,129.51,129.45,6.5627]
[1744674095777,20.13529094,129.48,129.45,6.5627]
[1744674095976,20.13529094,129.47,129.43,30.83529094]
[1744674096179,20.13529094,129.47,129.43,10.7]
[1744674096393,20.13529094,129.47,129.43,30.83529094]
[1744674096686,20.13529094,129.48,129.43,27.86139094]
[1744674097203,0.14216157,129.54,129.45,0.28432314]
[1744674097395,20.13529094,129.52,129.47,20.13529094]
[1744674097591,20.13529094,129.52,129.46,10.7]
[1744674097774,20.13529094,129.52,129.47,20.13529094]
[1744674097974,20.13529094,129.52,129.48,20.13529094]
[1744674098177,20.13529094,129.52,129.47,20.13529094]
[1744674098497,20.13529094,129.49,129.46,10.7]
[1744674098675,20.13529094,129.5,129.46,10.7]
[1744674098875,20.13529094,129.49,129.46,10.7]
[1744674099080,20.13529094,129.47,129.41,16.7897]
[1744674099389,20.13529094,129.45,129.41,16.7897]
[1744674100303,20.13529094,129.44,129.41,10.7]
[1744674100501,20.13529094,129.43,129.41,10.7]
[1744674100822,47.30865251,129.48,129.41,10.7]
[1744674100980,20.13529094,129.45,129.41,10.7]
[1744674101312,20.13529094,129.44,129.41,10.7]
[1744674102285,20.13529094,129.45,129.41,10.7]
[1744674102488,7.7226,129.49,129.43,20.13529094]
[1744674102680,20.13529094,129.48,129.43,20.13529094]
[1744674102886,20.13529094,129.47,129.43,20.13529094]
[1744674103086,7.7226,129.49,129.43,20.13529094]
[1744674103087,20.13529094,129.48,129.43,20.13529094]
[1744674103288,27.85849094,129.48,129.43,20.13529094]
[1744674103510,20.13529094,129.47,129.43,20.13529094]
[1744674103691,27.85849094,129.48,129.43,20.13529094]
[1744674103881,45.955672,129.53,129.41,18.4268]
[1744674104081,26.0,129.49,129.44,20.13529094]
[1744674104287,46.13529094,129.49,129.44,20.13529094]
[1744674105895,46.13529094,129.49,129.41,37.7452]
[1744674106104,20.13529094,129.48,129.43,20.13529094]
[1744674107096,27.85879094,129.48,129.43,20.13529094]
[1744674107303,20.13529094,129.45,129.41,38.56239094]
[1744674107494,20.13529094,129.46,129.41,38.56239094]
[1744674107691,53.85799094,129.49,129.44,20.13529094]
[1744674107909,53.85799094,129.49,129.46,20.13529094]
[1744674107910,26.0,129.49,129.46,20.13529094]
[1744674108398,26.0,129.49,129.45,20.13529094]
[1744674108706,20.13529094,129.5,129.45,20.13529094]
[1744674108914,27.85679094,129.51,129.46,20.13529094]
[1744674109210,108.65629094,129.52,129.47,20.13529094]
[1744674109389,27.85629094,129.52,129.47,20.13529094]
[1744674109583,20.13529094,129.54,129.49,20.13529094]
[1744674110008,20.13529094,129.53,129.48,20.13529094]
[1744674110504,7.7199,129.54,129.49,20.13529094]
[1744674110701,20.13529094,129.54,129.49,27.85749094]
[1744674110915,20.13529094,129.54,129.49,26.85749094]
[1744674111082,20.13529094,129.54,129.5,20.13529094]
[1744674111602,27.85529094,129.54,129.49,27.85749094]
[1744674113212,27.85529094,129.54,129.5,20.13529094]
[1744674113395,27.85529094,129.54,129.5,27.85719094]
[1744674113916,20.13529094,129.57,129.52,20.13529094]
[1744674114413,0.14216157,129.56,129.52,20.13529094]
[1744674114585,20.13529094,129.55,129.48,18.4227]
[1744674114789,20.27745251,129.56,129.5,20.13529094]
[1744674115505,0.14216157,129.56,129.5,20.13529094]
[1744674115715,27.85429094,129.55,129.5,20.13529094]
[1744674116013,27.85429094,129.55,129.5,27.85699094]
[1744674117108,20.13529094,129.57,129.51,20.13529094]
[1744674117319,20.13529094,129.57,129.52,20.13529094]
[1744674117508,20.13529094,129.58,129.52,20.13529094]
[1744674118316,20.13529094,129.57,129.52,27.85569094]
[1744674118519,20.13529094,129.57,129.52,20.13529094]
[1744674118699,0.20516157,129.61,129.55,20.13529094]
[1744674119016,20.13529094,129.6,129.55,20.13529094]
[1744674119241,26.0,129.59,129.55,20.13529094]
[1744674119612,33.7167,129.59,129.55,20.13529094]
[1744674119932,53.85199094,129.59,129.55,27.85419094]
[1744674120440,27.85199094,129.59,129.55,27.85419094]
[1744674120615,53.85199094,129.59,129.54,27.85459094]
[1744674121925,20.13529094,129.57,129.51,26.0905]
[1744674122124,7.7175,129.58,129.54,20.13529094]
[1744674122624,7.7175,129.58,129.51,46.22599094]
[1744674122829,20.13529094,129.56,129.51,46.22599094]
[1744674123213,20.13529094,129.56,129.52,20.13529094]
[1744674123414,20.13529094,129.57,129.52,20.13529094]
[1744674123809,27.85369094,129.56,129.51,46.22599094]
[1744674124820,20.13529094,129.55,129.51,10.7]
[1744674125025,20.13529094,129.54,129.51,10.7]
[1744674125326,20.13529094,129.55,129.51,10.7]